[Event "The Kvibergspelen 2023"]
[Site "Kviberg Park Hotel & Conference, Krutvagen 2, Gothenburg, Sweden"]
[Date "2023.09.16"]
[Round "5.9"]
[White "Jacobsen, Mikkel Manosri"]
[Black "Wahlund, Max"]
[Result "1-0"]
[TimeControl "15 minutes + 5 seconds per move from move one (Round 1 - 4) / 90 minutes + 30 seconds per move from move one (Round 5 - 8)"]
[WhiteTitle "FM"]
[BlackTitle "CM"]
[WhiteFideId "1444514"]
[BlackFideId "1741861"]
[WhiteElo "2313"]
[BlackElo "2065"]

1. c4 {[%clk 01:27:45]} {[%emt 00:03:15]} Nf6 {[%clk 01:27:06]} {[%emt
00:03:54]} 2. g3 {[%clk 01:28:09]} {[%emt 00:00:06]} g6 {[%clk 01:27:30]}
{[%emt 00:00:06]} 3. Bg2 {[%clk 01:28:27]} {[%emt 00:00:12]} Bg7 {[%clk
01:27:58]} {[%emt 00:00:03]} 4. Nc3 {[%clk 01:28:52]} {[%emt 00:00:05]} O-O
{[%clk 01:28:20]} {[%emt 00:00:07]} 5. d4 {[%clk 01:29:16]} {[%emt 00:00:05]}
d6 {[%clk 01:28:44]} {[%emt 00:00:07]} 6. h3 {[%clk 01:29:40]} {[%emt
00:00:06]} c5 {[%clk 01:29:03]} {[%emt 00:00:11]} 7. e3 {[%clk 01:29:33]}
{[%emt 00:00:37]} Nc6 {[%clk 01:28:36]} {[%emt 00:00:58]} 8. Nge2 {[%clk
01:29:54]} {[%emt 00:00:07]} a6 {[%clk 01:28:16]} {[%emt 00:00:51]} 9. O-O
{[%clk 01:19:26]} {[%emt 00:10:58]} Qc7 {[%clk 01:23:34]} {[%emt 00:05:12]} 10.
b3 {[%clk 01:18:41]} {[%emt 00:01:15]} Rb8 {[%clk 01:19:05]} {[%emt 00:05:00]}
11. Bb2 {[%clk 01:17:08]} {[%emt 00:02:02]} b6 {[%clk 01:09:03]} {[%emt
00:10:31]} 12. Rc1 {[%clk 01:14:39]} {[%emt 00:03:00]} Bb7 {[%clk 01:09:02]}
{[%emt 00:00:32]} 13. Qd2 {[%clk 01:10:12]} {[%emt 00:04:57]} e5 {[%clk
00:45:01]} {[%emt 00:24:31]} 14. dxe5 {[%clk 01:07:55]} {[%emt 00:02:47]} dxe5
{[%clk 00:39:37]} {[%emt 00:05:53]} 15. Nd5 {[%clk 01:06:16]} {[%emt 00:02:08]}
Nxd5 {[%clk 00:38:39]} {[%emt 00:01:29]} 16. cxd5 {[%clk 01:06:32]} {[%emt
00:00:14]} Qd7 {[%clk 00:36:13]} {[%emt 00:02:55]} 17. Rfd1 {[%clk 01:04:54]}
{[%emt 00:02:09]} Ne7 {[%clk 00:35:30]} {[%emt 00:01:13]} 18. b4 {[%clk
00:54:35]} {[%emt 00:10:49]} Rfc8 {[%clk 00:30:53]} {[%emt 00:05:07]} 19. bxc5
{[%clk 00:50:36]} {[%emt 00:04:29]} Rxc5 {[%clk 00:29:37]} {[%emt 00:01:46]} 20.
Rxc5 {[%clk 00:49:26]} {[%emt 00:01:40]} bxc5 {[%clk 00:30:05]} {[%emt
00:00:03]} 21. Ba3 {[%clk 00:46:30]} {[%emt 00:03:25]} Rc8 {[%clk 00:27:08]}
{[%emt 00:03:27]} 22. d6 {[%clk 00:39:29]} {[%emt 00:07:31]} Nf5 {[%clk
00:18:20]} {[%emt 00:09:18]} 23. Bxb7 {[%clk 00:39:31]} {[%emt 00:00:28]} Qxb7
{[%clk 00:18:48]} {[%emt 00:00:02]} 24. d7 {[%clk 00:39:41]} {[%emt 00:00:21]}
Rd8 {[%clk 00:19:12]} {[%emt 00:00:06]} 25. Bxc5 {[%clk 00:39:14]} {[%emt
00:00:57]} Bf8 {[%clk 00:19:36]} {[%emt 00:00:05]} 26. Bxf8 {[%clk 00:33:06]}
{[%emt 00:06:38]} Kxf8 {[%clk 00:20:04]} {[%emt 00:00:02]} 27. Qd5 {[%clk
00:32:46]} {[%emt 00:00:50]} Qxd5 {[%clk 00:18:19]} {[%emt 00:02:15]} 28. Rxd5
{[%clk 00:33:14]} {[%emt 00:00:02]} Ke7 {[%clk 00:14:27]} {[%emt 00:04:22]} 29.
Rxe5+ {[%clk 00:32:02]} {[%emt 00:01:42]} Kxd7 {[%clk 00:14:55]} {[%emt
00:00:02]} 30. Ra5 {[%clk 00:32:24]} {[%emt 00:00:09]} Ra8 {[%clk 00:14:39]}
{[%emt 00:00:45]} 31. g4 {[%clk 00:32:49]} {[%emt 00:00:05]} Ne7 {[%clk
00:13:56]} {[%emt 00:01:13]} 32. Nd4 {[%clk 00:33:03]} {[%emt 00:00:16]} Nc6
{[%clk 00:13:50]} {[%emt 00:00:38]} 33. Rd5+ {[%clk 00:33:26]} {[%emt
00:00:05]} Kc7 {[%clk 00:14:15]} {[%emt 00:00:04]} 34. Rc5 {[%clk 00:33:53]}
{[%emt 00:00:04]} 1-0

[Event "The Kvibergspelen 2023"]
[Site "Kviberg Park Hotel & Conference, Krutvagen 2, Gothenburg, Sweden"]
[Date "2023.09.16"]
[Round "5.10"]
[White "Mashhadi, Peyman"]
[Black "Poley, Vladimir"]
[Result "0-1"]
[TimeControl "15 minutes + 5 seconds per move from move one (Round 1 - 4) / 90 minutes + 30 seconds per move from move one (Round 5 - 8)"]
[BlackTitle "IM"]
[WhiteFideId "1768581"]
[BlackFideId "13500090"]
[WhiteElo "2112"]
[BlackElo "2284"]

1. e4 {[%clk 01:30:50]} {[%emt 00:00:09]} g6 {[%clk 01:30:53]} {[%emt
00:00:08]} 2. d4 {[%clk 01:30:55]} {[%emt 00:00:24]} Bg7 {[%clk 01:31:19]}
{[%emt 00:00:04]} 3. Nc3 {[%clk 01:30:29]} {[%emt 00:00:56]} c6 {[%clk
01:31:45]} {[%emt 00:00:05]} 4. Be3 {[%clk 01:29:56]} {[%emt 00:01:02]} d5
{[%clk 01:32:07]} {[%emt 00:00:10]} 5. e5 {[%clk 01:26:25]} {[%emt 00:03:59]}
Nh6 {[%clk 01:32:26]} {[%emt 00:00:12]} 6. Qd2 {[%clk 01:24:14]} {[%emt
00:02:41]} Nf5 {[%clk 01:32:35]} {[%emt 00:00:21]} 7. Bf4 {[%clk 01:23:59]}
{[%emt 00:00:45]} h5 {[%clk 01:31:50]} {[%emt 00:01:15]} 8. Nf3 {[%clk
01:21:18]} {[%emt 00:03:10]} a5 {[%clk 01:31:44]} {[%emt 00:00:37]} 9. h3
{[%clk 01:15:33]} {[%emt 00:06:15]} Na6 {[%clk 01:31:50]} {[%emt 00:00:24]} 10.
Be2 {[%clk 01:13:33]} {[%emt 00:02:28]} Nc7 {[%clk 01:31:51]} {[%emt 00:00:30]}
11. Ng5 {[%clk 01:08:44]} {[%emt 00:05:18]} f6 {[%clk 01:27:13]} {[%emt
00:05:10]} 12. Nf3 {[%clk 01:02:22]} {[%emt 00:06:51]} Ne6 {[%clk 01:26:53]}
{[%emt 00:00:50]} 13. g3 {[%clk 00:58:51]} {[%emt 00:04:01]} Qb6 {[%clk
01:18:58]} {[%emt 00:08:26]} 14. O-O-O {[%clk 00:57:19]} {[%emt 00:02:02]}
Nfxd4 {[%clk 01:12:15]} {[%emt 00:07:13]} 15. Nxd4 {[%clk 00:46:23]} {[%emt
00:11:25]} Qxd4 {[%clk 01:06:31]} {[%emt 00:06:15]} 16. Qe1 {[%clk 00:45:35]}
{[%emt 00:01:17]} Qb6 {[%clk 01:01:15]} {[%emt 00:05:47]} 17. exf6 {[%clk
00:41:50]} {[%emt 00:04:15]} Bxf6 {[%clk 00:58:28]} {[%emt 00:03:16]} 18. Bd3
{[%clk 00:40:33]} {[%emt 00:01:47]} Nxf4 {[%clk 00:54:31]} {[%emt 00:04:28]} 19.
gxf4 {[%clk 00:40:57]} {[%emt 00:00:06]} Bf5 {[%clk 00:52:06]} {[%emt
00:02:55]} 20. Bxf5 {[%clk 00:39:57]} {[%emt 00:01:30]} gxf5 {[%clk 00:52:30]}
{[%emt 00:00:06]} 21. Qe6 {[%clk 00:39:16]} {[%emt 00:01:12]} Qxf2 {[%clk
00:48:27]} {[%emt 00:04:32]} 22. Rhf1 {[%clk 00:36:44]} {[%emt 00:03:01]} Qc5
{[%clk 00:44:44]} {[%emt 00:04:14]} 23. Rde1 {[%clk 00:34:31]} {[%emt
00:02:42]} Rf8 {[%clk 00:42:17]} {[%emt 00:02:57]} 24. Rf3 {[%clk 00:26:20]}
{[%emt 00:08:41]} a4 {[%clk 00:38:14]} {[%emt 00:04:34]} 25. Rd3 {[%clk
00:24:42]} {[%emt 00:02:08]} a3 {[%clk 00:37:03]} {[%emt 00:01:41]} 26. b3
{[%clk 00:24:10]} {[%emt 00:01:02]} Rd8 {[%clk 00:31:25]} {[%emt 00:06:08]} 27.
Qe2 {[%clk 00:19:04]} {[%emt 00:05:36]} Kd7 {[%clk 00:25:52]} {[%emt 00:06:01]}
28. Na4 {[%clk 00:18:27]} {[%emt 00:01:10]} Qd6 {[%clk 00:25:45]} {[%emt
00:00:35]} 29. Qe6+ {[%clk 00:17:25]} {[%emt 00:01:34]} Kc7 {[%clk 00:24:59]}
{[%emt 00:01:14]} 30. Qe3 {[%clk 00:16:02]} {[%emt 00:01:53]} d4 {[%clk
00:25:15]} {[%emt 00:00:14]} 31. Qf2 {[%clk 00:15:35]} {[%emt 00:00:58]} Qb4
{[%clk 00:25:01]} {[%emt 00:00:43]} 32. Re6 {[%clk 00:12:43]} {[%emt 00:03:23]}
Rd6 {[%clk 00:23:41]} {[%emt 00:01:49]} 33. Qe2 {[%clk 00:09:22]} {[%emt
00:03:51]} Rxe6 {[%clk 00:21:57]} {[%emt 00:02:15]} 34. Qxe6 {[%clk 00:09:44]}
{[%emt 00:00:08]} b5 {[%clk 00:15:28]} {[%emt 00:06:59]} 35. Nc3 {[%clk
00:06:51]} {[%emt 00:03:24]} dxc3 {[%clk 00:10:07]} {[%emt 00:05:50]} 36. Qe3
{[%clk 00:07:03]} {[%emt 00:00:18]} Qa5 {[%clk 00:06:10]} {[%emt 00:04:26]} 37.
Qc5 {[%clk 00:03:11]} {[%emt 00:04:23]} Rd8 {[%clk 00:05:53]} {[%emt 00:00:46]}
38. b4 {[%clk 00:03:05]} {[%emt 00:00:37]} Qa8 {[%clk 00:05:51]} {[%emt
00:00:31]} 39. Rg3 {[%clk 00:02:20]} {[%emt 00:01:16]} Rd5 {[%clk 00:05:41]}
{[%emt 00:00:39]} 40. Qe3 {[%clk 00:02:42]} {[%emt 00:00:08]} Kb7 {[%clk
00:05:42]} {[%emt 00:00:28]} 41. Qg1 {[%clk 00:02:23]} {[%emt 00:00:51]} Qb8
{[%clk 00:05:43]} {[%emt 00:00:27]} 42. Qe3 {[%clk 00:01:46]} {[%emt 00:01:08]}
Qd6 {[%clk 00:06:01]} {[%emt 00:00:12]} 0-1

[Event "The Kvibergspelen 2023"]
[Site "Kviberg Park Hotel & Conference, Krutvagen 2, Gothenburg, Sweden"]
[Date "2023.09.16"]
[Round "5.11"]
[White "Falkevall, Axel"]
[Black "Lindholm, Gustav"]
[Result "1-0"]
[TimeControl "15 minutes + 5 seconds per move from move one (Round 1 - 4) / 90 minutes + 30 seconds per move from move one (Round 5 - 8)"]
[WhiteTitle "FM"]
[WhiteFideId "1735560"]
[BlackFideId "1736515"]
[WhiteElo "2276"]
[BlackElo "2102"]

1. e4 {[%clk 01:30:53]} {[%emt 00:00:04]} c5 {[%clk 01:30:58]} {[%emt
00:00:05]} 2. Nf3 {[%clk 01:31:05]} {[%emt 00:00:17]} d6 {[%clk 01:31:23]}
{[%emt 00:00:06]} 3. d4 {[%clk 01:31:27]} {[%emt 00:00:08]} cxd4 {[%clk
01:31:47]} {[%emt 00:00:06]} 4. Nxd4 {[%clk 01:31:53]} {[%emt 00:00:03]} Nf6
{[%clk 01:32:06]} {[%emt 00:00:11]} 5. Nc3 {[%clk 01:32:19]} {[%emt 00:00:05]}
a6 {[%clk 01:32:32]} {[%emt 00:00:04]} 6. Rg1 {[%clk 01:32:15]} {[%emt
00:00:35]} e5 {[%clk 01:30:31]} {[%emt 00:02:30]} 7. Nb3 {[%clk 01:32:40]}
{[%emt 00:00:04]} b5 {[%clk 01:29:41]} {[%emt 00:01:21]} 8. a4 {[%clk
01:28:07]} {[%emt 00:05:03]} b4 {[%clk 01:29:57]} {[%emt 00:00:14]} 9. Nd5
{[%clk 01:28:21]} {[%emt 00:00:16]} Bb7 {[%clk 01:24:31]} {[%emt 00:05:55]} 10.
g4 {[%clk 01:22:51]} {[%emt 00:06:01]} Nbd7 {[%clk 01:20:04]} {[%emt 00:04:58]}
11. g5 {[%clk 01:20:29]} {[%emt 00:02:51]} Nxe4 {[%clk 00:58:55]} {[%emt
00:21:38]} 12. Rg4 {[%clk 01:15:20]} {[%emt 00:05:39]} Nec5 {[%clk 00:57:13]}
{[%emt 00:02:12]} 13. Nxc5 {[%clk 01:12:40]} {[%emt 00:03:11]} Nxc5 {[%clk
00:52:02]} {[%emt 00:05:39]} 14. Rxb4 {[%clk 01:08:26]} {[%emt 00:04:46]} Be7
{[%clk 00:42:36]} {[%emt 00:09:56]} 15. Bg2 {[%clk 01:04:40]} {[%emt 00:04:15]}
Rb8 {[%clk 00:36:48]} {[%emt 00:06:18]} 16. Be3 {[%clk 00:54:57]} {[%emt
00:10:13]} Bxd5 {[%clk 00:30:25]} {[%emt 00:06:53]} 17. Rxb8 {[%clk 00:54:57]}
{[%emt 00:00:30]} Qxb8 {[%clk 00:30:49]} {[%emt 00:00:07]} 18. Qxd5 {[%clk
00:53:05]} {[%emt 00:02:22]} O-O {[%clk 00:29:41]} {[%emt 00:01:36]} 19. b3
{[%clk 00:48:25]} {[%emt 00:05:10]} Ne6 {[%clk 00:28:13]} {[%emt 00:01:59]} 20.
Qd2 {[%clk 00:47:38]} {[%emt 00:01:18]} Rc8 {[%clk 00:25:46]} {[%emt 00:02:57]}
21. Kf1 {[%clk 00:42:10]} {[%emt 00:05:57]} Qc7 {[%clk 00:23:52]} {[%emt
00:02:24]} 22. Be4 {[%clk 00:38:36]} {[%emt 00:04:04]} g6 {[%clk 00:21:26]}
{[%emt 00:02:57]} 23. a5 {[%clk 00:29:32]} {[%emt 00:09:34]} Kh8 {[%clk
00:20:00]} {[%emt 00:01:56]} 24. h4 {[%clk 00:23:34]} {[%emt 00:06:27]} f5
{[%clk 00:17:54]} {[%emt 00:02:37]} 25. gxf6 {[%clk 00:20:45]} {[%emt
00:03:18]} Bxf6 {[%clk 00:18:02]} {[%emt 00:00:23]} 26. Kg2 {[%clk 00:16:40]}
{[%emt 00:04:35]} Ng7 {[%clk 00:16:04]} {[%emt 00:02:28]} 27. Rh1 {[%clk
00:13:32]} {[%emt 00:03:37]} Qd7 {[%clk 00:15:46]} {[%emt 00:00:49]} 28. Kf1
{[%clk 00:13:15]} {[%emt 00:00:46]} Nh5 {[%clk 00:14:35]} {[%emt 00:01:41]} 29.
c4 {[%clk 00:11:01]} {[%emt 00:02:44]} Qe7 {[%clk 00:13:51]} {[%emt 00:01:15]}
30. Bf3 {[%clk 00:10:24]} {[%emt 00:01:07]} Rf8 {[%clk 00:09:04]} {[%emt
00:05:16]} 31. Bxh5 {[%clk 00:09:48]} {[%emt 00:01:06]} gxh5 {[%clk 00:09:29]}
{[%emt 00:00:05]} 32. Qd5 {[%clk 00:03:58]} {[%emt 00:06:22]} Bxh4 {[%clk
00:07:36]} {[%emt 00:02:22]} 33. Qe4 {[%clk 00:03:54]} {[%emt 00:00:34]} Bg5
{[%clk 00:06:52]} {[%emt 00:01:13]} 34. Rxh5 {[%clk 00:04:13]} {[%emt
00:00:12]} Bxe3 {[%clk 00:07:16]} {[%emt 00:00:06]} 35. Qxe3 {[%clk 00:04:40]}
{[%emt 00:00:03]} Qf7 {[%clk 00:04:37]} {[%emt 00:03:08]} 36. Rh6 {[%clk
00:04:43]} {[%emt 00:00:27]} Qe7 {[%clk 00:01:09]} {[%emt 00:03:59]} 37. Qd2
{[%clk 00:03:11]} {[%emt 00:02:02]} Rf6 {[%clk 00:01:15]} {[%emt 00:00:24]} 38.
Rxf6 {[%clk 00:03:20]} {[%emt 00:00:21]} Qxf6 {[%clk 00:01:38]} {[%emt
00:00:07]} 39. Qd5 {[%clk 00:03:24]} {[%emt 00:00:24]} Qg6 {[%clk 00:00:32]}
{[%emt 00:01:37]} 40. Qa8+ {[%clk 00:03:34]} {[%emt 00:00:20]} Kg7 {[%clk
00:00:55]} {[%emt 00:00:07]} 41. Qg2 {[%clk 00:02:56]} {[%emt 00:01:08]} Kf6
{[%clk 00:00:50]} {[%emt 00:00:35]} 42. Qxg6+ {[%clk 00:03:21]} {[%emt
00:00:06]} hxg6 {[%clk 00:01:02]} {[%emt 00:00:19]} 43. b4 {[%clk 00:03:46]}
{[%emt 00:00:04]} Ke6 {[%clk 00:01:05]} {[%emt 00:00:26]} 44. b5 {[%clk
00:04:06]} {[%emt 00:00:11]} Kd7 {[%clk 00:00:34]} {[%emt 00:01:01]} 45. b6
{[%clk 00:04:10]} {[%emt 00:00:26]} Kc6 {[%clk 00:00:46]} {[%emt 00:00:18]} 46.
Kg2 {[%clk 00:04:32]} {[%emt 00:00:07]} Kb7 {[%clk 00:00:48]} {[%emt 00:00:29]}
47. Kf3 {[%clk 00:04:56]} {[%emt 00:00:06]} Kc6 {[%clk 00:01:14]} {[%emt
00:00:04]} 48. Kg4 {[%clk 00:05:07]} {[%emt 00:00:18]} Kb7 {[%clk 00:01:31]}
{[%emt 00:00:14]} 49. Kg5 {[%clk 00:05:24]} {[%emt 00:00:12]} 1-0

[Event "The Kvibergspelen 2023"]
[Site "Kviberg Park Hotel & Conference, Krutvagen 2, Gothenburg, Sweden"]
[Date "2023.09.16"]
[Round "5.12"]
[White "Hagevi, Vidar"]
[Black "Hansen, Lars"]
[Result "0-1"]
[TimeControl "15 minutes + 5 seconds per move from move one (Round 1 - 4) / 90 minutes + 30 seconds per move from move one (Round 5 - 8)"]
[WhiteFideId "1767526"]
[BlackFideId "1402528"]
[WhiteElo "2037"]
[BlackElo "2188"]

1. e4 {[%clk 01:30:57]} {[%emt 00:00:01]} e6 {[%clk 01:23:19]} {[%emt
00:07:42]} 2. d4 {[%clk 01:31:19]} {[%emt 00:00:07]} d5 {[%clk 01:23:44]}
{[%emt 00:00:05]} 3. Nc3 {[%clk 01:31:33]} {[%emt 00:00:16]} Nf6 {[%clk
01:24:08]} {[%emt 00:00:06]} 4. e5 {[%clk 01:31:40]} {[%emt 00:00:23]} Nfd7
{[%clk 01:24:34]} {[%emt 00:00:04]} 5. Nce2 {[%clk 01:31:18]} {[%emt 00:00:51]}
c5 {[%clk 01:24:46]} {[%emt 00:00:18]} 6. c3 {[%clk 01:31:24]} {[%emt
00:00:24]} Nc6 {[%clk 01:25:13]} {[%emt 00:00:04]} 7. f4 {[%clk 01:31:20]}
{[%emt 00:00:34]} Qb6 {[%clk 01:22:34]} {[%emt 00:03:10]} 8. Nf3 {[%clk
01:31:31]} {[%emt 00:00:18]} f6 {[%clk 01:22:26]} {[%emt 00:00:38]} 9. a3
{[%clk 01:29:10]} {[%emt 00:02:51]} Be7 {[%clk 01:21:40]} {[%emt 00:01:15]} 10.
b4 {[%clk 01:17:23]} {[%emt 00:12:18]} cxd4 {[%clk 01:21:48]} {[%emt 00:00:23]}
11. cxd4 {[%clk 01:05:01]} {[%emt 00:12:52]} O-O {[%clk 01:21:51]} {[%emt
00:00:27]} 12. Qd3 {[%clk 01:02:00]} {[%emt 00:03:30]} fxe5 {[%clk 00:51:45]}
{[%emt 00:30:36]} 13. fxe5 {[%clk 01:01:00]} {[%emt 00:01:30]} Rf5 {[%clk
00:44:05]} {[%emt 00:08:10]} 14. Be3 {[%clk 00:53:32]} {[%emt 00:07:58]} Nf8
{[%clk 00:40:01]} {[%emt 00:04:34]} 15. Ng3 {[%clk 00:48:40]} {[%emt 00:05:22]}
Rf7 {[%clk 00:40:26]} {[%emt 00:00:05]} 16. Be2 {[%clk 00:46:57]} {[%emt
00:02:13]} Ng6 {[%clk 00:39:32]} {[%emt 00:01:25]} 17. O-O {[%clk 00:40:17]}
{[%emt 00:07:08]} Nf4 {[%clk 00:38:35]} {[%emt 00:01:28]} 18. Qd2 {[%clk
00:30:49]} {[%emt 00:09:58]} Nxe2+ {[%clk 00:38:56]} {[%emt 00:00:09]} 19. Qxe2
{[%clk 00:30:29]} {[%emt 00:00:50]} Bd7 {[%clk 00:38:54]} {[%emt 00:00:32]} 20.
Kh1 {[%clk 00:29:14]} {[%emt 00:01:45]} Raf8 {[%clk 00:31:57]} {[%emt
00:07:27]} 21. Rfd1 {[%clk 00:25:00]} {[%emt 00:04:44]} h6 {[%clk 00:30:52]}
{[%emt 00:01:36]} 22. Qd3 {[%clk 00:22:07]} {[%emt 00:03:22]} Be8 {[%clk
00:20:35]} {[%emt 00:10:46]} 23. Nd2 {[%clk 00:21:53]} {[%emt 00:00:44]} Bh4
{[%clk 00:17:06]} {[%emt 00:04:00]} 24. Nb3 {[%clk 00:20:21]} {[%emt 00:02:02]}
Ne7 {[%clk 00:11:47]} {[%emt 00:05:49]} 25. Nc5 {[%clk 00:18:12]} {[%emt
00:02:38]} Bxg3 {[%clk 00:12:11]} {[%emt 00:00:08]} 26. hxg3 {[%clk 00:18:06]}
{[%emt 00:00:34]} Bb5 {[%clk 00:12:07]} {[%emt 00:00:35]} 27. Qd2 {[%clk
00:17:02]} {[%emt 00:01:34]} Nf5 {[%clk 00:11:44]} {[%emt 00:00:52]} 28. g4
{[%clk 00:14:38]} {[%emt 00:02:54]} Ng3+ {[%clk 00:11:14]} {[%emt 00:01:00]} 29.
Kg1 {[%clk 00:12:16]} {[%emt 00:02:53]} Qd8 {[%clk 00:10:23]} {[%emt 00:01:19]}
30. g5 {[%clk 00:12:13]} {[%emt 00:00:34]} Qe8 {[%clk 00:05:31]} {[%emt
00:05:23]} 31. Nd3 {[%clk 00:04:59]} {[%emt 00:07:44]} Rf5 {[%clk 00:03:34]}
{[%emt 00:02:27]} 32. Bf2 {[%clk 00:00:50]} {[%emt 00:04:39]} Ne4 {[%clk
00:03:28]} {[%emt 00:00:36]} 33. Qe3 {[%clk 00:01:06]} {[%emt 00:00:14]} Bxd3
{[%clk 00:03:40]} {[%emt 00:00:18]} 34. Rxd3 {[%clk 00:01:16]} {[%emt
00:00:19]} Nxf2 {[%clk 00:03:37]} {[%emt 00:00:33]} 0-1

[Event "The Kvibergspelen 2023"]
[Site "Kviberg Park Hotel & Conference, Krutvagen 2, Gothenburg, Sweden"]
[Date "2023.09.16"]
[Round "5.13"]
[White "Nygren, Kim"]
[Black "Jarlskov, Daniel Tuk Hartso"]
[Result "1/2-1/2"]
[TimeControl "15 minutes + 5 seconds per move from move one (Round 1 - 4) / 90 minutes + 30 seconds per move from move one (Round 5 - 8)"]
[WhiteTitle "CM"]
[WhiteFideId "1706136"]
[BlackFideId "1463896"]
[WhiteElo "2171"]
[BlackElo "2038"]

1. e4 {[%clk 01:30:57]} {[%emt 00:00:03]} c6 {[%clk 01:25:29]} {[%emt
00:05:22]} 2. d4 {[%clk 01:31:23]} {[%emt 00:00:14]} d5 {[%clk 01:25:53]}
{[%emt 00:00:06]} 3. exd5 {[%clk 01:31:49]} {[%emt 00:00:05]} cxd5 {[%clk
01:26:18]} {[%emt 00:00:04]} 4. Bd3 {[%clk 01:32:15]} {[%emt 00:00:04]} Nc6
{[%clk 01:26:16]} {[%emt 00:00:32]} 5. c3 {[%clk 01:32:37]} {[%emt 00:00:08]}
Nf6 {[%clk 01:26:41]} {[%emt 00:00:06]} 6. h3 {[%clk 01:32:48]} {[%emt
00:00:18]} e6 {[%clk 01:20:27]} {[%emt 00:06:44]} 7. Nf3 {[%clk 01:32:38]}
{[%emt 00:00:40]} h6 {[%clk 01:15:00]} {[%emt 00:05:57]} 8. O-O {[%clk
01:32:52]} {[%emt 00:00:16]} Bd6 {[%clk 01:15:23]} {[%emt 00:00:06]} 9. Re1
{[%clk 01:32:53]} {[%emt 00:00:29]} Qc7 {[%clk 01:15:42]} {[%emt 00:00:11]} 10.
Nbd2 {[%clk 01:31:30]} {[%emt 00:01:54]} O-O {[%clk 01:15:05]} {[%emt
00:01:07]} 11. Qe2 {[%clk 01:25:36]} {[%emt 00:06:23]} Nd7 {[%clk 01:07:07]}
{[%emt 00:08:28]} 12. Nf1 {[%clk 01:10:25]} {[%emt 00:15:42]} e5 {[%clk
00:57:22]} {[%emt 00:10:15]} 13. dxe5 {[%clk 01:10:49]} {[%emt 00:00:05]} Ndxe5
{[%clk 00:57:45]} {[%emt 00:00:07]} 14. Bc2 {[%clk 01:06:39]} {[%emt 00:04:41]}
Be6 {[%clk 00:45:48]} {[%emt 00:12:25]} 15. Nd4 Nxd4 {[%clk 00:43:22]} 16. cxd4
{[%clk 01:03:57]} {[%emt 00:00:25]} Nd7 {[%clk 00:42:59]} {[%emt 00:00:52]} 17.
Qd3 {[%clk 00:54:44]} {[%emt 00:09:43]} Nf6 {[%clk 00:43:09]} {[%emt 00:00:20]}
18. Bd2 {[%clk 00:54:32]} {[%emt 00:00:41]} Rac8 {[%clk 00:39:15]} {[%emt
00:04:25]} 19. Rac1 {[%clk 00:53:01]} {[%emt 00:02:02]} Qd7 {[%clk 00:39:38]}
{[%emt 00:00:06]} 20. Qf3 {[%clk 00:39:55]} {[%emt 00:13:35]} Ne4 {[%clk
00:32:26]} {[%emt 00:07:42]} 21. Bxe4 {[%clk 00:36:23]} {[%emt 00:04:03]} dxe4
{[%clk 00:32:54]} {[%emt 00:00:02]} 22. Qxe4 {[%clk 00:36:03]} {[%emt
00:00:50]} Bxa2 {[%clk 00:33:15]} {[%emt 00:00:08]} 23. Ne3 {[%clk 00:34:46]}
{[%emt 00:01:48]} Bb8 {[%clk 00:16:14]} {[%emt 00:17:31]} 24. Bc3 {[%clk
00:24:05]} {[%emt 00:11:12]} Rfd8 {[%clk 00:13:34]} {[%emt 00:03:08]} 25. Nf5
{[%clk 00:22:26]} {[%emt 00:02:09]} Be6 {[%clk 00:09:43]} {[%emt 00:04:21]} 26.
Nxg7 {[%clk 00:17:31]} {[%emt 00:05:26]} Bd5 {[%clk 00:10:09]} {[%emt
00:00:05]} 27. Nh5 {[%clk 00:17:24]} {[%emt 00:00:36]} Bxe4 {[%clk 00:10:34]}
{[%emt 00:00:06]} 28. Nf6+ {[%clk 00:17:51]} {[%emt 00:00:03]} Kg7 {[%clk
00:10:53]} {[%emt 00:00:10]} 29. Nxd7 {[%clk 00:17:52]} {[%emt 00:00:29]} Bd5
{[%clk 00:11:19]} {[%emt 00:00:04]} 30. Nxb8 {[%clk 00:17:18]} {[%emt
00:01:03]} Rxb8 {[%clk 00:11:44]} {[%emt 00:00:06]} 31. Ra1 {[%clk 00:16:32]}
{[%emt 00:01:15]} a6 {[%clk 00:11:12]} {[%emt 00:01:03]} 32. Ra5 {[%clk
00:16:48]} {[%emt 00:00:13]} Rd6 {[%clk 00:09:34]} {[%emt 00:02:08]} 33. Re5
{[%clk 00:15:27]} {[%emt 00:01:52]} Rbd8 {[%clk 00:09:58]} {[%emt 00:00:05]} 34.
Bb4 {[%clk 00:13:53]} {[%emt 00:02:04]} R6d7 {[%clk 00:09:12]} {[%emt
00:01:17]} 35. Be7 {[%clk 00:11:23]} {[%emt 00:02:59]} Re8 {[%clk 00:09:36]}
{[%emt 00:00:06]} 36. Bf6+ {[%clk 00:10:16]} {[%emt 00:01:37]} Kxf6 {[%clk
00:09:58]} {[%emt 00:00:09]} 37. Rxe8 {[%clk 00:10:41]} {[%emt 00:00:05]} Bc6
{[%clk 00:10:21]} {[%emt 00:00:07]} 38. g4 {[%clk 00:08:46]} {[%emt 00:02:24]}
Rxd4 {[%clk 00:10:26]} {[%emt 00:00:25]} 39. Rf5+ {[%clk 00:07:41]} {[%emt
00:01:35]} Kg7 {[%clk 00:10:48]} {[%emt 00:00:08]} 40. Re7 {[%clk 00:07:17]}
{[%emt 00:00:54]} Bd5 {[%clk 00:11:16]} {[%emt 00:00:03]} 41. Kh2 {[%clk
00:04:41]} {[%emt 00:03:05]} Be6 {[%clk 00:11:35]} {[%emt 00:00:11]} 42. Rf3
{[%clk 00:04:12]} {[%emt 00:00:58]} b5 {[%clk 00:11:54]} {[%emt 00:00:12]} 43.
Ra7 {[%clk 00:03:24]} {[%emt 00:01:19]} Rb4 {[%clk 00:11:50]} {[%emt 00:00:34]}
44. Rxa6 {[%clk 00:03:13]} {[%emt 00:00:41]} Rxb2 {[%clk 00:12:17]} {[%emt
00:00:03]} 45. Kg3 {[%clk 00:03:02]} {[%emt 00:00:40]} b4 {[%clk 00:12:26]}
{[%emt 00:00:23]} 46. Rb6 {[%clk 00:03:06]} {[%emt 00:00:24]} b3 {[%clk
00:12:54]} {[%emt 00:00:02]} 47. Rf4 {[%clk 00:03:08]} {[%emt 00:00:29]} Rc2
{[%clk 00:11:17]} {[%emt 00:02:08]} 48. Rfb4 {[%clk 00:01:49]} {[%emt
00:01:48]} Rc3+ {[%clk 00:11:26]} {[%emt 00:00:21]} 49. Kg2 {[%emt 00:01:18]}
Bd5+ 50. Kh2 {[%emt 00:00:02]} Rc2 {[%emt 00:00:03]} 1/2-1/2